[Event "Late-Titled-Tuesday-Blitz-March-12-2024"]
[Site "Chess.com"]
[Date "2024.03.12"]
[Round "5"]
[White "simaopdias"]
[Black "PapaieDudu"]
[Result "1-0"]
[WhiteElo "2270"]
[BlackElo "2432"]
[TimeControl "180+1"]
[EndTime "14:53:33 PDT"]
[Termination "simaopdias won by resignation"]

1. e4 {[%clk 0:03:00]} 1... c5 {[%clk 0:02:50.6]} 2. Nf3 {[%clk 0:03:00.3]} 2...
d6 {[%clk 0:02:51]} 3. d4 {[%clk 0:03:00.7]} 3... cxd4 {[%clk 0:02:51.9]} 4.
Nxd4 {[%clk 0:03:01.1]} 4... Nf6 {[%clk 0:02:52.6]} 5. Nc3 {[%clk 0:03:01.9]}
5... a6 {[%clk 0:02:53.4]} 6. Be3 {[%clk 0:03:02.4]} 6... e6 {[%clk 0:02:52.5]}
7. Be2 {[%clk 0:03:02.8]} 7... b5 {[%clk 0:02:53.2]} 8. f4 {[%clk 0:03:01.1]}
8... Bb7 {[%clk 0:02:53.5]} 9. Bf3 {[%clk 0:03:01.5]} 9... b4 {[%clk 0:02:50.8]}
10. e5 {[%clk 0:02:54.7]} 10... Nd5 {[%clk 0:02:49.2]} 11. Nxd5 {[%clk
0:02:54.4]} 11... exd5 {[%clk 0:02:49.8]} 12. O-O {[%clk 0:02:52.8]} 12... Nd7
{[%clk 0:02:46.9]} 13. exd6 {[%clk 0:02:36.5]} 13... Bxd6 {[%clk 0:02:47.8]} 14.
Nf5 {[%clk 0:02:36.5]} 14... Qf6 {[%clk 0:02:37.9]} 15. Nxd6+ {[%clk 0:02:29]}
15... Qxd6 {[%clk 0:02:37.9]} 16. Bd4 {[%clk 0:02:29.2]} 16... O-O {[%clk
0:02:38]} 17. Qd2 {[%clk 0:02:23.6]} 17... Nb6 {[%clk 0:02:33.6]} 18. b3 {[%clk
0:02:20.3]} 18... Rac8 {[%clk 0:02:21.8]} 19. Rad1 {[%clk 0:02:19.9]} 19... Nd7
{[%clk 0:02:17.5]} 20. Kh1 {[%clk 0:02:15.4]} 20... Rfd8 {[%clk 0:02:14.2]} 21.
Bg4 {[%clk 0:02:10.4]} 21... Rc7 {[%clk 0:02:03.1]} 22. Qf2 {[%clk 0:02:06.2]}
22... Nf6 {[%clk 0:01:58.4]} 23. Bf5 {[%clk 0:01:53.6]} 23... Ne4 {[%clk
0:01:50.2]} 24. Qh4 {[%clk 0:01:49.6]} 24... h6 {[%clk 0:01:34.2]} 25. Be5
{[%clk 0:01:44.7]} 25... Qe7 {[%clk 0:01:29.2]} 26. Qg4 {[%clk 0:01:31.3]} 26...
Nf6 {[%clk 0:01:23.3]} 27. Qh4 {[%clk 0:01:22.1]} 27... Rxc2 {[%clk 0:01:17]}
28. Bxc2 {[%clk 0:01:21.3]} 28... Qc5 {[%clk 0:01:12.6]} 29. Bd3 {[%clk
0:01:11.8]} 29... d4 {[%clk 0:01:06]} 30. Bxf6 {[%clk 0:01:06.1]} 30... Rd6
{[%clk 0:01:06.3]} 31. Be7 {[%clk 0:01:01.5]} 31... Qd5 {[%clk 0:01:06.9]} 32.
Qg3 {[%clk 0:00:53.7]} 32... Rc6 {[%clk 0:01:03.6]} 33. Bxb4 {[%clk 0:00:53.3]}
33... Re6 {[%clk 0:01:02.5]} 34. Bc4 {[%clk 0:00:50.6]} 34... Qe4 {[%clk
0:01:02.4]} 35. Bxe6 {[%clk 0:00:48.8]} 35... fxe6 {[%clk 0:01:03.3]} 36. Qf2
{[%clk 0:00:40.4]} 36... d3 {[%clk 0:01:02.6]} 37. Bc3 {[%clk 0:00:35.6]} 37...
Bd5 {[%clk 0:00:59.9]} 38. Rfe1 {[%clk 0:00:33.4]} 38... Qg6 {[%clk 0:00:59.8]}
39. Kg1 {[%clk 0:00:32.3]} 39... Kh7 {[%clk 0:01:00.3]} 40. Rd2 {[%clk
0:00:32.2]} 40... a5 {[%clk 0:01:00.5]} 41. Qd4 {[%clk 0:00:31.5]} 41... h5
{[%clk 0:00:58.3]} 42. Qxd3 {[%clk 0:00:28.5]} 42... Qxd3 {[%clk 0:00:56.4]} 43.
Rxd3 {[%clk 0:00:28.8]} 43... Kg6 {[%clk 0:00:55.3]} 44. Rxd5 {[%clk 0:00:28.9]}
44... exd5 {[%clk 0:00:56.2]} 45. Re5 {[%clk 0:00:28.7]} 1-0

[Event "Late-Titled-Tuesday-Blitz-March-12-2024"]
[Site "Chess.com"]
[Date "2024.03.12"]
[Round "5"]
[White "Marcan2b"]
[Black "Meri-Arabidze"]
[Result "1-0"]
[WhiteElo "2937"]
[BlackElo "2709"]
[TimeControl "180+1"]
[EndTime "14:53:34 PDT"]
[Termination "Marcan2b won on time"]

1. e4 {[%clk 0:03:00.9]} 1... e5 {[%clk 0:02:59.5]} 2. Nf3 {[%clk 0:02:59.7]}
2... Nc6 {[%clk 0:02:59.5]} 3. Bb5 {[%clk 0:02:56.9]} 3... a6 {[%clk 0:02:59.7]}
4. Ba4 {[%clk 0:02:51.2]} 4... Nf6 {[%clk 0:03:00.2]} 5. Nc3 {[%clk 0:02:50.4]}
5... d6 {[%clk 0:02:57.8]} 6. Bxc6+ {[%clk 0:02:46.3]} 6... bxc6 {[%clk
0:02:57.7]} 7. d4 {[%clk 0:02:47.2]} 7... exd4 {[%clk 0:02:57.4]} 8. Nxd4 {[%clk
0:02:45.4]} 8... Bd7 {[%clk 0:02:57.2]} 9. Qf3 {[%clk 0:02:42.5]} 9... Be7
{[%clk 0:02:49.6]} 10. e5 {[%clk 0:02:39.2]} 10... dxe5 {[%clk 0:02:33.7]} 11.
Nxc6 {[%clk 0:02:37]} 11... Bxc6 {[%clk 0:02:32.6]} 12. Qxc6+ {[%clk 0:02:36.4]}
12... Nd7 {[%clk 0:02:19.7]} 13. Be3 {[%clk 0:02:32.6]} 13... O-O {[%clk
0:02:02.7]} 14. O-O-O {[%clk 0:02:31.9]} 14... Bd6 {[%clk 0:02:02.8]} 15. Ne4
{[%clk 0:02:32.6]} 15... Nf6 {[%clk 0:01:44]} 16. Bg5 {[%clk 0:02:26]} 16... Rb8
{[%clk 0:01:18.6]} 17. Rd3 {[%clk 0:02:11.1]} 17... Rb6 {[%clk 0:01:12.1]} 18.
Qc4 {[%clk 0:02:07.8]} 18... Rb4 {[%clk 0:00:44.1]} 19. Qxb4 {[%clk 0:01:52.6]}
19... Bxb4 {[%clk 0:00:45]} 20. Rxd8 {[%clk 0:01:53.1]} 20... Rxd8 {[%clk
0:00:45.7]} 21. Nxf6+ {[%clk 0:01:53.3]} 21... gxf6 {[%clk 0:00:46.5]} 22. Bxf6
{[%clk 0:01:54.1]} 22... Rd2 {[%clk 0:00:40]} 23. a3 {[%clk 0:01:30.9]} 23...
Rxf2 {[%clk 0:00:32.7]} 24. Bxe5 {[%clk 0:01:23.8]} 24... Bd2+ {[%clk
0:00:26.1]} 25. Kb1 {[%clk 0:01:23.3]} 25... Rxg2 {[%clk 0:00:26]} 26. Bxc7
{[%clk 0:01:23.4]} 26... a5 {[%clk 0:00:15.1]} 27. c4 {[%clk 0:01:17.2]} 27...
a4 {[%clk 0:00:13.1]} 28. c5 {[%clk 0:01:13.2]} 28... Be3 {[%clk 0:00:13.3]} 29.
c6 {[%clk 0:01:06.3]} 29... Bd4 {[%clk 0:00:13.3]} 30. Rd1 {[%clk 0:01:06.2]}
30... Rxb2+ {[%clk 0:00:07.9]} 31. Kc1 {[%clk 0:01:06.5]} 31... Bf6 {[%clk
0:00:05.9]} 32. Bg3 {[%clk 0:00:59.2]} 32... Rb3 {[%clk 0:00:03.9]} 33. c7
{[%clk 0:00:53]} 33... Rc3+ {[%clk 0:00:04.1]} 34. Kd2 {[%clk 0:00:53.5]} 34...
Rc6 {[%clk 0:00:03.2]} 35. Bf4 {[%clk 0:00:50.8]} 35... Be7 {[%clk 0:00:01.3]}
36. Rc1 {[%clk 0:00:49.8]} 1-0

[Event "Late-Titled-Tuesday-Blitz-March-12-2024"]
[Site "Chess.com"]
[Date "2024.03.12"]
[Round "5"]
[White "Durarbayli"]
[Black "sergiochess83"]
[Result "0-1"]
[WhiteElo "2992"]
[BlackElo "2908"]
[TimeControl "180+1"]
[EndTime "14:53:39 PDT"]
[Termination "sergiochess83 won on time"]

1. e4 {[%clk 0:03:00.9]} 1... e6 {[%clk 0:02:49.5]} 2. d4 {[%clk 0:02:59.5]}
2... d5 {[%clk 0:02:49.3]} 3. e5 {[%clk 0:02:59.7]} 3... c5 {[%clk 0:02:48.3]}
4. c3 {[%clk 0:03:00.3]} 4... Nc6 {[%clk 0:02:48.9]} 5. Nf3 {[%clk 0:03:00.8]}
5... Bd7 {[%clk 0:02:49.6]} 6. Be2 {[%clk 0:02:58.3]} 6... Nge7 {[%clk
0:02:44.1]} 7. O-O {[%clk 0:02:57.9]} 7... Ng6 {[%clk 0:02:44.3]} 8. g3 {[%clk
0:02:48.6]} 8... f6 {[%clk 0:02:38.1]} 9. exf6 {[%clk 0:02:06.8]} 9... Qxf6
{[%clk 0:02:39]} 10. Bg5 {[%clk 0:02:05.9]} 10... Qf7 {[%clk 0:02:37.8]} 11. h4
{[%clk 0:02:04.2]} 11... h6 {[%clk 0:02:31]} 12. Be3 {[%clk 0:02:02.9]} 12...
cxd4 {[%clk 0:02:30]} 13. Nxd4 {[%clk 0:01:57.5]} 13... Bd6 {[%clk 0:02:19]} 14.
Bh5 {[%clk 0:01:55.6]} 14... O-O {[%clk 0:02:15.4]} 15. Nd2 {[%clk 0:01:37.9]}
15... Nce7 {[%clk 0:02:09]} 16. f4 {[%clk 0:01:20.7]} 16... Qf6 {[%clk
0:01:47.5]} 17. N2f3 {[%clk 0:00:40.8]} 17... e5 {[%clk 0:01:27.7]} 18. fxe5
{[%clk 0:00:41.1]} 18... Nxe5 {[%clk 0:01:27.8]} 19. Bf4 {[%clk 0:00:41.6]}
19... Nxf3+ {[%clk 0:01:21.6]} 20. Rxf3 {[%clk 0:00:33.8]} 20... Bxf4 {[%clk
0:01:21.7]} 21. Rxf4 {[%clk 0:00:34]} 21... Qe5 {[%clk 0:01:21.6]} 22. Qe1
{[%clk 0:00:28.6]} 22... Qxh5 {[%clk 0:01:05.5]} 23. Qxe7 {[%clk 0:00:16.2]}
23... Rxf4 {[%clk 0:01:04.1]} 24. gxf4 {[%clk 0:00:16.3]} 24... Qg4+ {[%clk
0:01:03.4]} 25. Kh1 {[%clk 0:00:16.3]} 25... Re8 {[%clk 0:01:01.3]} 26. Qd6
{[%clk 0:00:08.2]} 26... Qxh4+ {[%clk 0:00:50.2]} 27. Kg2 {[%clk 0:00:07.7]}
27... Bh3+ {[%clk 0:00:47.6]} 28. Kh2 {[%clk 0:00:07.5]} 28... Bf5+ {[%clk
0:00:31]} 29. Kg1 {[%clk 0:00:06.6]} 29... Qg3+ {[%clk 0:00:30.3]} 30. Kf1
{[%clk 0:00:06.8]} 30... Bd3+ {[%clk 0:00:30.3]} 0-1

[Event "Late-Titled-Tuesday-Blitz-March-12-2024"]
[Site "Chess.com"]
[Date "2024.03.12"]
[Round "5"]
[White "SlavenPastar"]
[Black "Iljiushenok_Ilya"]
[Result "0-1"]
[WhiteElo "2579"]
[BlackElo "2783"]
[TimeControl "180+1"]
[EndTime "14:53:39 PDT"]
[Termination "Iljiushenok_Ilya won by resignation"]

1. b3 {[%clk 0:03:00.9]} 1... c5 {[%clk 0:02:56.2]} 2. Bb2 {[%clk 0:03:01.3]}
2... Nc6 {[%clk 0:02:56]} 3. Nf3 {[%clk 0:03:01.5]} 3... Nf6 {[%clk 0:02:53.7]}
4. e3 {[%clk 0:03:01.1]} 4... e6 {[%clk 0:02:46.2]} 5. d4 {[%clk 0:02:58.1]}
5... d5 {[%clk 0:02:45.7]} 6. Be2 {[%clk 0:02:53]} 6... Be7 {[%clk 0:02:37.2]}
7. O-O {[%clk 0:02:53.1]} 7... O-O {[%clk 0:02:37.2]} 8. dxc5 {[%clk 0:02:48.1]}
8... Bxc5 {[%clk 0:02:36.8]} 9. c4 {[%clk 0:02:48.3]} 9... Qe7 {[%clk
0:02:28.6]} 10. cxd5 {[%clk 0:02:36.5]} 10... exd5 {[%clk 0:02:22.1]} 11. Nc3
{[%clk 0:02:32.1]} 11... Rd8 {[%clk 0:02:17.3]} 12. Nb5 {[%clk 0:02:30.2]} 12...
Ne4 {[%clk 0:02:09.9]} 13. Nbd4 {[%clk 0:02:28.1]} 13... Bd7 {[%clk 0:01:57.9]}
14. Rc1 {[%clk 0:02:27]} 14... Bb6 {[%clk 0:01:54.8]} 15. Qc2 {[%clk 0:02:16.5]}
15... Rac8 {[%clk 0:01:51.4]} 16. Qb1 {[%clk 0:02:15.6]} 16... Nxd4 {[%clk
0:01:42.4]} 17. exd4 {[%clk 0:01:53]} 17... Nd2 {[%clk 0:01:33.5]} 18. Nxd2
{[%clk 0:01:45]} 18... Qxe2 {[%clk 0:01:33.4]} 19. Nf3 {[%clk 0:01:34.7]} 19...
Qe4 {[%clk 0:01:27.5]} 20. Rxc8 {[%clk 0:01:15.8]} 20... Rxc8 {[%clk 0:01:23.9]}
21. Ne5 {[%clk 0:01:08.3]} 21... Bf5 {[%clk 0:01:07.4]} 22. Qxe4 {[%clk
0:00:59.6]} 22... Bxe4 {[%clk 0:01:08.3]} 23. f3 {[%clk 0:00:56.6]} 23... Bf5
{[%clk 0:01:05.2]} 24. g4 {[%clk 0:00:53.1]} 24... Rc2 {[%clk 0:00:51.2]} 25.
Rf2 {[%clk 0:00:23.5]} 25... Rxb2 {[%clk 0:00:50.7]} 26. Rxb2 {[%clk 0:00:24.4]}
26... Bxd4+ {[%clk 0:00:51]} 27. Rf2 {[%clk 0:00:24]} 27... Bxe5 {[%clk
0:00:46.5]} 28. Kg2 {[%clk 0:00:17.7]} 28... Be6 {[%clk 0:00:43.6]} 29. f4
{[%clk 0:00:15.5]} 29... Bd4 {[%clk 0:00:40.7]} 30. Rd2 {[%clk 0:00:15.4]} 30...
Be3 {[%clk 0:00:41.1]} 31. Re2 {[%clk 0:00:14.8]} 31... d4 {[%clk 0:00:41]} 32.
Kf3 {[%clk 0:00:14.8]} 32... Bd5+ {[%clk 0:00:40.7]} 33. Kg3 {[%clk 0:00:14.9]}
33... Be4 {[%clk 0:00:39.1]} 0-1

[Event "Late-Titled-Tuesday-Blitz-March-12-2024"]
[Site "Chess.com"]
[Date "2024.03.12"]
[Round "5"]
[White "Casper"]
[Black "Slovak_fighter2000"]
[Result "0-1"]
[WhiteElo "2472"]
[BlackElo "2609"]
[TimeControl "180+1"]
[EndTime "14:53:46 PDT"]
[Termination "Slovak_fighter2000 won by resignation"]

1. Nf3 {[%clk 0:02:05.2]} 1... d5 {[%clk 0:02:59.6]} 2. b3 {[%clk 0:02:06.1]}
2... c5 {[%clk 0:02:56.7]} 3. Bb2 {[%clk 0:02:07]} 3... Nc6 {[%clk 0:02:56.7]}
4. e3 {[%clk 0:02:07.9]} 4... a6 {[%clk 0:02:56.5]} 5. d4 {[%clk 0:02:08.1]}
5... cxd4 {[%clk 0:02:56.2]} 6. exd4 {[%clk 0:02:09]} 6... Bg4 {[%clk
0:02:55.9]} 7. Be2 {[%clk 0:02:09]} 7... Nf6 {[%clk 0:02:55.7]} 8. O-O {[%clk
0:02:09.7]} 8... Bxf3 {[%clk 0:02:54.7]} 9. Bxf3 {[%clk 0:02:09.6]} 9... e6
{[%clk 0:02:55.6]} 10. c4 {[%clk 0:02:10.1]} 10... Be7 {[%clk 0:02:55.1]} 11.
Nc3 {[%clk 0:02:09.2]} 11... dxc4 {[%clk 0:02:54.8]} 12. Bxc6+ {[%clk
0:02:08.8]} 12... bxc6 {[%clk 0:02:54.6]} 13. bxc4 {[%clk 0:02:09.7]} 13... O-O
{[%clk 0:02:54.1]} 14. Na4 {[%clk 0:02:06.7]} 14... Rb8 {[%clk 0:02:47.3]} 15.
Rb1 {[%clk 0:02:04.2]} 15... Qa5 {[%clk 0:02:42.4]} 16. Qc2 {[%clk 0:01:59.2]}
16... Rfd8 {[%clk 0:02:39.6]} 17. h3 {[%clk 0:01:54.7]} 17... Qh5 {[%clk
0:02:31.7]} 18. c5 {[%clk 0:01:45.7]} 18... Nd5 {[%clk 0:02:23.3]} 19. Qd3
{[%clk 0:01:44.3]} 19... Nb4 {[%clk 0:02:16.1]} 20. Qc4 {[%clk 0:01:42.4]} 20...
Qd5 {[%clk 0:02:09.3]} 21. Rfc1 {[%clk 0:01:29]} 21... Nxa2 {[%clk 0:02:03]} 22.
Qxd5 {[%clk 0:01:24.8]} 22... exd5 {[%clk 0:01:59.6]} 23. Re1 {[%clk 0:01:23.4]}
23... Bf6 {[%clk 0:01:49.3]} 24. Nb6 {[%clk 0:01:24]} 24... Nb4 {[%clk
0:01:45.2]} 25. Bc3 {[%clk 0:01:19.4]} 25... Nc2 {[%clk 0:01:40]} 26. Red1
{[%clk 0:01:16.1]} 26... Na3 {[%clk 0:01:22.6]} 27. Ra1 {[%clk 0:01:12.5]} 27...
Nb5 {[%clk 0:01:21.3]} 28. Bb2 {[%clk 0:01:12.1]} 28... Rb7 {[%clk 0:01:12.9]}
29. Rxa6 {[%clk 0:01:09.5]} 29... Re8 {[%clk 0:01:11.1]} 30. Kf1 {[%clk
0:00:50.1]} 30... h5 {[%clk 0:01:09.7]} 31. f3 {[%clk 0:00:48.5]} 31... Nc7
{[%clk 0:01:08.2]} 32. Ra3 {[%clk 0:00:33]} 32... Ne6 {[%clk 0:01:07.4]} 33. Bc3
{[%clk 0:00:28.6]} 33... Kh7 {[%clk 0:01:01.5]} 34. g3 {[%clk 0:00:22.6]} 34...
Ng5 {[%clk 0:00:58.2]} 35. f4 {[%clk 0:00:19]} 35... Ne4 {[%clk 0:00:56.6]} 36.
Be1 {[%clk 0:00:19.7]} 36... g6 {[%clk 0:00:49.3]} 37. g4 {[%clk 0:00:18.6]}
37... hxg4 {[%clk 0:00:49.2]} 38. hxg4 {[%clk 0:00:19.5]} 38... Bg7 {[%clk
0:00:48.6]} 39. Rda1 {[%clk 0:00:15.3]} 39... Bxd4 {[%clk 0:00:45.1]} 40. Rh3+
{[%clk 0:00:15.6]} 40... Kg8 {[%clk 0:00:43.2]} 41. Ra6 {[%clk 0:00:15]} 41...
Nxc5 {[%clk 0:00:41.8]} 0-1

[Event "Late-Titled-Tuesday-Blitz-March-12-2024"]
[Site "Chess.com"]
[Date "2024.03.12"]
[Round "5"]
[White "karinachess1"]
[Black "Igor_Lysyj"]
[Result "0-1"]
[WhiteElo "2609"]
[BlackElo "2832"]
[TimeControl "180+1"]
[EndTime "14:53:47 PDT"]
[Termination "Igor_Lysyj won on time"]

1. d4 {[%clk 0:03:00.9]} 1... Nf6 {[%clk 0:02:58.9]} 2. c4 {[%clk 0:03:01.2]}
2... e6 {[%clk 0:02:58.7]} 3. Nc3 {[%clk 0:03:01.6]} 3... Bb4 {[%clk 0:02:58.4]}
4. a3 {[%clk 0:03:01.8]} 4... Bxc3+ {[%clk 0:02:58.1]} 5. bxc3 {[%clk
0:03:02.7]} 5... c5 {[%clk 0:02:58]} 6. f3 {[%clk 0:03:03.1]} 6... Nc6 {[%clk
0:02:57.3]} 7. e4 {[%clk 0:03:02.9]} 7... d6 {[%clk 0:02:57.2]} 8. Ne2 {[%clk
0:02:57.9]} 8... b6 {[%clk 0:02:55.7]} 9. Be3 {[%clk 0:02:56.1]} 9... Na5 {[%clk
0:02:50.7]} 10. Ng3 {[%clk 0:02:54.3]} 10... O-O {[%clk 0:02:49.7]} 11. Bd3
{[%clk 0:02:50.9]} 11... Ba6 {[%clk 0:02:49.2]} 12. Qe2 {[%clk 0:02:51.3]} 12...
Qc7 {[%clk 0:02:46.3]} 13. d5 {[%clk 0:02:36.6]} 13... Nd7 {[%clk 0:02:45.7]}
14. f4 {[%clk 0:02:30.3]} 14... exd5 {[%clk 0:02:43.1]} 15. cxd5 {[%clk
0:02:31.2]} 15... Bxd3 {[%clk 0:02:39.6]} 16. Qxd3 {[%clk 0:02:32.1]} 16... c4
{[%clk 0:02:38.2]} 17. Qc2 {[%clk 0:02:30.6]} 17... Rae8 {[%clk 0:02:35.9]} 18.
O-O {[%clk 0:02:29.4]} 18... f5 {[%clk 0:02:34]} 19. Bd4 {[%clk 0:02:11]} 19...
Nb3 {[%clk 0:02:33.7]} 20. Nxf5 {[%clk 0:01:55.1]} 20... Nxa1 {[%clk 0:02:30.3]}
21. Rxa1 {[%clk 0:01:56]} 21... Nf6 {[%clk 0:02:30.1]} 22. e5 {[%clk 0:01:37.8]}
22... dxe5 {[%clk 0:02:27.6]} 23. d6 {[%clk 0:01:37.8]} 23... Qd7 {[%clk
0:02:06.7]} 24. Bxe5 {[%clk 0:01:26.2]} 24... Rf7 {[%clk 0:01:47.8]} 25. Rd1
{[%clk 0:01:07.5]} 25... Ng4 {[%clk 0:01:40.2]} 26. Ne7+ {[%clk 0:01:05.8]}
26... Rfxe7 {[%clk 0:01:34.7]} 27. dxe7 {[%clk 0:01:04.6]} 27... Qxe7 {[%clk
0:01:35.1]} 28. Qe4 {[%clk 0:00:41.6]} 28... Qc5+ {[%clk 0:01:34]} 29. Qd4
{[%clk 0:00:37.8]} 29... Rd8 {[%clk 0:01:20.4]} 30. h3 {[%clk 0:00:19.7]} 30...
Rxd4 {[%clk 0:01:16.4]} 31. Bxd4 {[%clk 0:00:20.6]} 31... Qf5 {[%clk 0:00:58.3]}
32. hxg4 {[%clk 0:00:21.1]} 32... Qxf4 {[%clk 0:00:58.8]} 33. Re1 {[%clk
0:00:15.8]} 33... Qxg4 {[%clk 0:00:57.6]} 34. Re7 {[%clk 0:00:16]} 34... h5
{[%clk 0:00:53.4]} 35. Rxa7 {[%clk 0:00:15]} 35... g5 {[%clk 0:00:51.9]} 36.
Rg7+ {[%clk 0:00:07.5]} 36... Kf8 {[%clk 0:00:51.5]} 37. Rh7 {[%clk 0:00:03.5]}
37... h4 {[%clk 0:00:50.8]} 38. a4 {[%clk 0:00:03.3]} 38... Qg3 {[%clk
0:00:46.5]} 0-1

[Event "Late-Titled-Tuesday-Blitz-March-12-2024"]
[Site "Chess.com"]
[Date "2024.03.12"]
[Round "5"]
[White "ChristopherYoo"]
[Black "Jospem"]
[Result "1-0"]
[WhiteElo "3007"]
[BlackElo "3114"]
[TimeControl "180+1"]
[EndTime "14:53:55 PDT"]
[Termination "ChristopherYoo won by resignation"]

1. d4 {[%clk 0:03:00.9]} 1... Nf6 {[%clk 0:02:59.7]} 2. c4 {[%clk 0:03:00.8]}
2... e6 {[%clk 0:03:00.4]} 3. Nc3 {[%clk 0:03:00.9]} 3... Bb4 {[%clk 0:03:01]}
4. a3 {[%clk 0:03:00.6]} 4... Bxc3+ {[%clk 0:03:01]} 5. bxc3 {[%clk 0:03:01.4]}
5... c5 {[%clk 0:03:00.9]} 6. e3 {[%clk 0:03:01.2]} 6... Nc6 {[%clk 0:03:01]} 7.
Bd3 {[%clk 0:03:00.5]} 7... d6 {[%clk 0:03:01.2]} 8. Ne2 {[%clk 0:02:59.6]} 8...
e5 {[%clk 0:03:01.4]} 9. O-O {[%clk 0:02:59.6]} 9... O-O {[%clk 0:03:00.3]} 10.
Rb1 {[%clk 0:02:40.2]} 10... Re8 {[%clk 0:02:56.9]} 11. Bc2 {[%clk 0:02:10.5]}
11... Na5 {[%clk 0:02:52.7]} 12. e4 {[%clk 0:01:48.5]} 12... h6 {[%clk
0:02:47.8]} 13. Ng3 {[%clk 0:01:34.1]} 13... Nxc4 {[%clk 0:02:36.4]} 14. f4
{[%clk 0:01:29.2]} 14... cxd4 {[%clk 0:02:28.6]} 15. cxd4 {[%clk 0:01:28.2]}
15... a6 {[%clk 0:02:12.6]} 16. a4 {[%clk 0:01:12.2]} 16... b5 {[%clk
0:02:04.8]} 17. axb5 {[%clk 0:01:11.3]} 17... axb5 {[%clk 0:02:05.7]} 18. Rxb5
{[%clk 0:01:11.4]} 18... Ba6 {[%clk 0:01:57.4]} 19. Rb1 {[%clk 0:01:10.8]} 19...
Na5 {[%clk 0:01:54.3]} 20. Rf2 {[%clk 0:00:56.3]} 20... Nc6 {[%clk 0:01:52.4]}
21. Ba4 {[%clk 0:00:47]} 21... Rc8 {[%clk 0:01:10]} 22. d5 {[%clk 0:00:43.7]}
22... Nd4 {[%clk 0:01:10.5]} 23. Bxe8 {[%clk 0:00:42.1]} 23... Qxe8 {[%clk
0:01:09.6]} 24. Be3 {[%clk 0:00:41.7]} 24... Rc4 {[%clk 0:01:05.6]} 25. fxe5
{[%clk 0:00:40.4]} 25... Qxe5 {[%clk 0:01:00.5]} 26. Bf4 {[%clk 0:00:32.5]}
26... Qe7 {[%clk 0:00:54.1]} 27. Ra2 {[%clk 0:00:32.1]} 27... Bc8 {[%clk
0:00:31.8]} 28. Qd3 {[%clk 0:00:31.5]} 28... Qc7 {[%clk 0:00:29]} 29. Bxd6
{[%clk 0:00:29.7]} 29... Rc1+ {[%clk 0:00:29.3]} 30. Nf1 {[%clk 0:00:29]} 30...
Qc4 {[%clk 0:00:22.4]} 31. Qxc4 {[%clk 0:00:25.9]} 31... Rxc4 {[%clk 0:00:23.3]}
32. Nd2 {[%clk 0:00:25.8]} 32... Rc3 {[%clk 0:00:20.2]} 33. Be5 {[%clk
0:00:22.9]} 33... Rd3 {[%clk 0:00:20.9]} 34. Bxd4 {[%clk 0:00:22.2]} 34... Rxd4
{[%clk 0:00:21.8]} 35. Rb8 {[%clk 0:00:22]} 35... Kh7 {[%clk 0:00:19.7]} 36.
Rxc8 {[%clk 0:00:21.8]} 36... Ng4 {[%clk 0:00:19.8]} 37. h3 {[%clk 0:00:21.4]}
37... Ne5 {[%clk 0:00:20.3]} 38. Kf2 {[%clk 0:00:18.6]} 38... f6 {[%clk
0:00:20.6]} 39. Nf3 {[%clk 0:00:18]} 39... Rxe4 {[%clk 0:00:21]} 40. Nxe5 {[%clk
0:00:18]} 40... Rxe5 {[%clk 0:00:21.9]} 41. Rd2 {[%clk 0:00:17.8]} 41... Re8
{[%clk 0:00:22.8]} 42. Rxe8 {[%clk 0:00:17.6]} 1-0

[Event "Late-Titled-Tuesday-Blitz-March-12-2024"]
[Site "Chess.com"]
[Date "2024.03.12"]
[Round "5"]
[White "Bkmzzzzz"]
[Black "PawnEatingZombie"]
[Result "1-0"]
[WhiteElo "2382"]
[BlackElo "2108"]
[TimeControl "180+1"]
[EndTime "14:54:02 PDT"]
[Termination "Bkmzzzzz won by resignation"]

1. e4 {[%clk 0:03:00.9]} 1... d6 {[%clk 0:02:55.5]} 2. d4 {[%clk 0:03:00]} 2...
Nf6 {[%clk 0:02:54.9]} 3. Nc3 {[%clk 0:02:59.9]} 3... e5 {[%clk 0:02:55.5]} 4.
Nf3 {[%clk 0:02:58.2]} 4... Nbd7 {[%clk 0:02:55.3]} 5. Bc4 {[%clk 0:02:57.8]}
5... Be7 {[%clk 0:02:54.6]} 6. dxe5 {[%clk 0:02:58]} 6... dxe5 {[%clk
0:02:50.8]} 7. Ng5 {[%clk 0:02:56.4]} 7... O-O {[%clk 0:02:48.6]} 8. Bxf7+
{[%clk 0:02:56.2]} 8... Rxf7 {[%clk 0:02:47]} 9. Ne6 {[%clk 0:02:56.8]} 9... Qe8
{[%clk 0:02:42]} 10. Nxc7 {[%clk 0:02:57.4]} 10... Qd8 {[%clk 0:02:35.6]} 11.
Nxa8 {[%clk 0:02:57.9]} 11... b6 {[%clk 0:02:02.6]} 12. Nxb6 {[%clk 0:02:23.7]}
12... Qxb6 {[%clk 0:01:53.3]} 13. O-O {[%clk 0:02:10.9]} 13... Bb7 {[%clk
0:01:29.8]} 14. Be3 {[%clk 0:01:43.2]} 14... Qa5 {[%clk 0:01:25.3]} 15. f3
{[%clk 0:01:35.8]} 15... Nb6 {[%clk 0:01:13.8]} 16. Bf2 {[%clk 0:00:55.3]} 16...
Bf8 {[%clk 0:01:11.7]} 17. a3 {[%clk 0:00:51.7]} 17... Rd7 {[%clk 0:01:10.7]}
18. Qc1 {[%clk 0:00:45.6]} 18... Bc5 {[%clk 0:00:57.7]} 19. b4 {[%clk
0:00:37.2]} 19... Bxf2+ {[%clk 0:00:56.9]} 20. Rxf2 {[%clk 0:00:38.1]} 20... Qa6
{[%clk 0:00:53.5]} 21. Rd2 {[%clk 0:00:32.5]} 21... Qc4 {[%clk 0:00:52.7]} 22.
Rxd7 {[%clk 0:00:26.4]} 22... Nfxd7 {[%clk 0:00:51.1]} 23. Qd2 {[%clk 0:00:27]}
23... h6 {[%clk 0:00:28.5]} 24. Rd1 {[%clk 0:00:27]} 24... Kh7 {[%clk
0:00:28.6]} 25. Nd5 {[%clk 0:00:21]} 25... Nxd5 {[%clk 0:00:24.5]} 26. exd5
{[%clk 0:00:21.9]} 26... Qa2 {[%clk 0:00:19.9]} 27. Qd3+ {[%clk 0:00:21.5]}
27... Kh8 {[%clk 0:00:18]} 28. c4 {[%clk 0:00:21.7]} 28... a5 {[%clk 0:00:13.8]}
29. c5 {[%clk 0:00:21.3]} 29... axb4 {[%clk 0:00:13.7]} 30. axb4 {[%clk
0:00:22.2]} 30... Nf6 {[%clk 0:00:10.9]} 31. c6 {[%clk 0:00:21.6]} 31... Bc8
{[%clk 0:00:10.4]} 32. b5 {[%clk 0:00:21.7]} 32... Qb2 {[%clk 0:00:09.1]} 33. d6
{[%clk 0:00:21.2]} 33... e4 {[%clk 0:00:05]} 34. fxe4 {[%clk 0:00:20.5]} 34...
Bg4 {[%clk 0:00:04.7]} 35. d7 {[%clk 0:00:18.6]} 35... Bxd1 {[%clk 0:00:03.8]}
36. d8=Q+ {[%clk 0:00:19]} 36... Kh7 {[%clk 0:00:04.3]} 37. e5+ {[%clk
0:00:19.6]} 1-0